{"text_format":"1","workbook":"xlsx","n_sheets":4,"sheets":["MENU","Evaluation NATIONAL","Eval. Inter-Supra-Even.","Evaluation JEUNE"],"not_rendered":{"charts":0,"images":1,"macros":0,"external_links":0,"defined_names":3,"comments":0,"pivot_tables":0},"unopened":[],"bounds":{"document_bytes":16777216,"sheet_cells":100000,"rows_first":2000,"rows_last":500,"rows_between":2000,"halvings":0,"cell_chars":16384,"cell_head_chars":4096},"cells_cut":0,"cells_raw":0,"read":"whole","date_system":"1900"}

{"sheet":"MENU","index":0,"n_rows":0,"n_cols":0,"rows_kept":0,"cut":false,"hidden":false,"merged":[]}

{"sheet":"Evaluation NATIONAL","index":1,"n_rows":77,"n_cols":9,"rows_kept":77,"cut":false,"hidden":false,"merged":[[62,2,62,8],[31,0,31,1],[4,1,4,2],[4,3,4,4],[4,7,4,8],[5,1,5,5],[5,7,5,8],[6,1,6,4],[6,5,6,6],[6,7,6,8],[8,0,8,1],[14,2,14,8],[14,0,14,1],[7,1,7,4],[7,5,7,6],[7,7,7,8],[0,0,2,0],[0,1,0,8],[1,1,1,8],[2,1,2,8],[3,0,3,8],[78,4,78,6],[71,0,72,8],[73,0,73,8],[74,0,74,8],[75,0,75,8],[76,6,76,8],[8,5,8,8],[12,0,12,8],[13,1,13,3],[13,4,13,5],[13,6,13,7],[9,0,9,4],[9,5,10,5],[9,6,10,6],[9,7,10,7],[9,8,10,8],[10,0,11,0],[11,1,11,2],[10,1,10,2],[15,2,15,8],[25,2,25,8],[23,2,23,8],[16,2,16,8],[17,2,17,8],[18,2,18,8],[22,2,22,8],[19,2,19,8],[21,2,21,8],[20,2,20,8],[24,2,24,8],[28,2,28,8],[42,2,42,8],[26,2,26,8],[34,2,34,8],[35,2,35,8],[36,2,36,8],[27,2,27,8],[29,2,29,8],[31,2,31,8],[33,2,33,8],[32,2,32,8],[37,2,37,8],[38,2,38,8],[60,2,60,8],[43,2,43,8],[39,2,39,8],[45,2,45,8],[46,2,46,8],[59,2,59,8],[51,2,51,8],[52,2,52,8],[53,2,53,8],[54,2,54,8],[55,2,55,8],[58,2,58,8],[56,2,56,8],[40,2,40,8],[41,2,41,8],[44,2,44,8],[70,0,70,8],[50,0,50,1],[50,2,50,8],[47,2,47,8],[48,2,48,8],[58,0,58,1],[57,4,57,8],[49,4,49,8],[66,1,66,2],[67,1,67,2],[68,1,68,8],[69,1,69,8],[64,1,64,2],[65,1,65,2],[63,4,63,8],[61,2,61,8]]}
[null,"FEDERATION FRANCAISE DE PETANQUE  ET JEU PROVENCAL"]
[null,"Agréée par le Ministère des Sports"]
[null,"Siège social : 13, rue Trigance – 13002  MARSEILLE"]
["VERSION V06022018  RAPPORT D' EVALUATION QUALITATIVE NATIONAL"]
["NATIONAL ","N°",null,null,null,null,"DATE:"]
["  INTITULE DU CONCOURS : ",null,null,null,null,null,"LIEU :"]
["DELEGUE :",null,null,null,null,"C. D. et C.R. et fonction"]
["ORGANISATEUR :",null,null,null,null,"C. D. et C.R. et fonction"]
["Le délégué doit impérativement noter :",null,"Tél. ",null,"E mail :"]
["1) EVALUATION QUANTITATIVE",null,null,null,null,"% Présents / inscrits","% Présents / limité","Minimum Fédération","% Présents /min. FFPJP "]
["NOMBRE EQUIPES","Limité",null,"Inscrite","Présente"]
[null,null,null,null,null,{"$f":"E12/D12","v":{"$error":"#DIV/0!"}},{"$f":"D12/B12","v":{"$error":"#DIV/0!"}},null,{"$f":"E12/H12","v":{"$error":"#DIV/0!"}}]
["2 ) EVALUATION QUALITATIVE  (Dans le respect des règles de la F. F. P. J. P.)"]
["INSUFFISANT = 0","ACCEPTABLE = 1",null,null,"CORRECT = 2"]
["CRITERES REGLEMENTAIRES",null,"REMARQUES (justifier impérativement votre cotation)"]
["Utilisation du logiciel Gestion Concours."]
["Feuilles de Match. "]
["Réception des licences : entrées équipes dans Gestion Concours."]
["Tenue de la Table de marque. "]
["Ecran (informatique) ou tableau de suivie manuel."]
["Respect des mises (10 -15- 18 €)."]
["Respect de la dotation annoncée."]
["Répartition des prix utilisation du \"calcul indemnité\". "]
["Affichage des prix (affichage pris sur le calcul indemnité)."]
["Respect des horaires (noté les  heures de début et de fin sur les lignes 69 & 70)."]
["*Respect des 2 ou 3 parties de poule terminées  avant l'arrêt repas (voir dans Art. 7 du règl.)."]
["Affichage du Jury."]
["Arbitres en nombre suffisant (règlement = 1 pour 32 terrains)."]
["Respect du règlement buvette (législation en vigueur.)"]
["Qualité de l'accueil."]
["TOTAL 1",{"$f":"SUM(B16:B30)","v":0},30,{"$f":"B31/C31","v":0}]
["CRITERES ORGANISATIONNELS",null,"REMARQUES (justifier impérativement votre cotation)"]
["Affiche (présence et respect de l'article 10 du règlement)."]
["Plan et fléchage (pour rejoindre les jeux, plan des jeux et du site. "]
["Terrains réglementaires (longueur, largeur, planches)."]
["Carré d'honneur (8 jeux 15x4, affichage des scores, éclairage, barrières)."]
["Eclairage du site (jeux éclairés en quantités suffisantes). "]
["Sonorisation ( de l'ensemble des jeux et du carré d'honneur.)"]
["Contrôle des boules (appareil de contrôle à disposition)."]
["Contrôle fait, noté le résultats (fait 2, non fait 0)"]
["Sanitaires (en nombre suffisant pour femmes, hommes et PMR)"]
["Entretien et propreté ( du site, des sanitaires etc. ..) "]
["Tri sélectif "]
["Protocole (présentation des joueurs, arbitres, officiels)"]
["Animation du site (Concours annexes jeunes féminines etc. …)"]
["Restauration sur place (Salle, tente ou chapiteau)."]
["Bénévoles en nombre suffisant. "]
["Gestion des incidents et des incivilités. "]
["Local pour contrôles médicaux (alcoolémie et dopage). "]
["TOTAL 2",{"$f":"SUM(B33:B49)","v":0},34,{"$f":"B50/C50","v":0}]
["CRITERES PROMOTIONNELS",null,"REMARQUES (justifier impérativement votre cotation)"]
["Présence des Elus."]
["Présence des Sponsors."]
["Communication avec la presse. "]
["Gentlemen - Exhibition."]
["Niveau du plateau."]
["Promotion RADIO-TV. "]
["TOTAL 2",{"$f":"SUM(B52:B57)","v":0},12,{"$f":"B58/C58","v":0}]
["CRITERES SECURITAIRE ",null,"REMARQUES (justifier impérativement votre cotation)"]
["Service de sécurité.  "]
["Service d'urgence (Pompier, Croix Rouge etc. …). "]
["Présence d'un défibrillateur."]
["P.M.R. Accessibilité pour les personnes à mobilité réduite. "]
["TOTAL 2",{"$f":"SUM(B60:B63)","v":0},8,{"$f":"B64/C64","v":0}]
["TOTAL 1 - 2 - 3 - 4",{"$f":"C31+C50+C58+C64","v":84},null,"% Global","% Crit. Régl.","% Crit. Org. ","% Crit. Prom.","Crit. SEC."]
["Total de point Maxi ",{"$f":"B31+B50+B58+B64","v":0},null,{"$f":"B66/B65","v":0},{"$f":"D31","v":0},{"$f":"D50","v":0},{"$f":"D58","v":0},{"$f":"D64","v":0}]
["Horaire journée 1","Matin ",null,null,"Midi ",null,"Soir"]
["Horaire journée 2","Matin ",null,null,"Midi ",null,"Soir"]
["REMARQUES"]
["SYNTHESE"]
["*Mettre  2 dans cellule B si la manifestation n'est pas concerné par cette règle. "]
["1/ Un exemplaire de ce compte-rendu DUMENT REMPLI est à transmettre PAR LE DELEGUE dans les 48 heures au siège social de la F.F.P.J.P.    PAR MAIL   ffpjp.siege@petanque.fr      "]
[]
["2 / une copie au COMITE concerné."]
["3 / une copie au COMITE REGIONAL concerné."]
["4 / une copie au Président de l'organisation. "]
[null,null,null,null,null,null,"Mise à jour le 06 février 2018"]

{"sheet":"Eval. Inter-Supra-Even.","index":2,"n_rows":87,"n_cols":9,"rows_kept":87,"cut":false,"hidden":false,"merged":[[0,0,2,0],[0,1,0,8],[1,1,1,8],[2,1,2,8],[3,0,3,8],[8,5,8,8],[8,0,8,1],[7,7,7,8],[5,1,5,5],[5,7,5,8],[4,1,4,2],[4,3,4,4],[4,7,4,8],[7,1,7,4],[7,5,7,6],[6,1,6,4],[6,5,6,6],[6,7,6,8],[15,0,15,8],[9,0,9,4],[9,5,10,5],[9,6,10,6],[9,7,10,7],[9,8,10,8],[12,0,12,8],[13,0,13,8],[14,0,14,8],[10,0,11,0],[10,1,10,2],[11,1,11,2],[35,2,35,8],[28,2,28,8],[29,2,29,8],[30,2,30,8],[31,2,31,8],[24,2,24,8],[25,2,25,8],[26,2,26,8],[17,0,17,1],[17,2,17,8],[18,2,18,8],[20,2,20,8],[21,2,21,8],[27,2,27,8],[19,2,19,8],[16,4,16,5],[16,6,16,7],[22,2,22,8],[23,2,23,8],[16,1,16,3],[34,0,34,1],[59,4,59,8],[60,0,60,1],[67,4,67,8],[44,2,44,8],[46,2,46,8],[47,2,47,8],[48,2,48,8],[49,2,49,8],[32,2,32,8],[39,2,39,8],[40,2,40,8],[41,2,41,8],[42,2,42,8],[43,2,43,8],[34,2,34,8],[36,2,36,8],[37,2,37,8],[38,2,38,8],[51,2,51,8],[52,2,52,8],[53,2,53,8],[54,2,54,8],[55,2,55,8],[56,2,56,8],[63,2,63,8],[64,2,64,8],[62,2,62,8],[78,1,78,8],[75,1,75,2],[85,0,85,8],[81,0,82,8],[45,2,45,8],[57,2,57,8],[58,2,58,8],[80,0,80,8],[83,0,83,8],[84,0,84,8],[71,2,71,8],[72,2,72,8],[74,1,74,2],[65,2,65,8],[66,2,66,8],[68,2,68,8],[70,2,70,8],[79,1,79,8],[73,4,73,8],[50,2,50,8],[69,2,69,8],[68,0,68,1],[60,2,60,8],[61,2,61,8]]}
[null,"FEDERATION FRANCAISE DE PETANQUE  ET JEU PROVENCAL"]
[null,"Agréée par le Ministère des Sports"]
[null,"Siège social : 13, rue Trigance – 13002  MARSEILLE"]
["VERSION V06022018 RAPPORT D' EVALUATION QUALITATIVE NAT. INTER. SUPRA. EVEN."]
["INTERNATIONAL N°",null,null,"SUPRA NATIONAL N°",null,null,"DATE:"]
[" INTITULE DU CONCOURS : ",null,null,null,null,null,"LIEU :"]
["DELEGUE :",null,null,null,null,"C. D. et C.R. et fonction"]
["ORGANISATEUR :",null,null,null,null,"C. D. et C.R."]
["Le délégué doit impérativement noter :",null,"Tél. ",null,"E mail :"]
["1) EVALUATION QUANTITATIVE",null,null,null,null,"% Présents / inscrits","% Présents / limité","Minimum Fédération","% Présents /min. FFPJP "]
["NOMBRE EQUIPES","Limité",null,"Inscrite","Présente"]
[null,null,null,null,null,{"$f":"E12/D12","v":{"$error":"#DIV/0!"}},{"$f":"D12/B12","v":{"$error":"#DIV/0!"}},null,{"$f":"E12/H12","v":{"$error":"#DIV/0!"}}]
["EQUIPES ETRANGERES (noté ci-dessous, après vérification de leurs validations, les pays étrangers)   "]
[]
["Présence obligatoire de 6 équipes étrangères dont 3 nationalités différentes, licenciées à une Fédération étrangère ou sélectionnées par leur pays."]
["2 ) EVALUATION QUALITATIVE  (Dans le respect des règles de la F. F. P. J. P.)"]
["INSUFFISANT = 0","ACCEPTABLE = 1",null,null,"CORRECT = 2"]
["CRITERES REGLEMENTAIRES",null,"REMARQUES (justifier impérativement votre cotation)"]
["Utilisation du logiciel Gestion Concours."]
["Feuille de Match."]
["Réception des licences : entrées équipes dans Gestion Concours."]
["Tenue de la table de marque. "]
["Ecran (informatique) ou tableau de suivie manuel"]
["Respect des mises (18 €)"]
["Respect de la dotation annoncée."]
["Répartition des prix utilisation du \"calcul indemnité\"."]
["Affichage des prix (affiche du calcul indemnité)."]
["Respect des horaires (noté les heures de début et de fin sur les lignes 78 & 7."]
["Respect des 2 parties de poule terminées  avant l'arrêt repas (voir dans Art. 7 du règl.)."]
["Affichage du Jury"]
["Arbitres en nombre suffisant (règlement = 1 pour 32 terrains)"]
["Respect du règlement buvette (législation en vigueur)."]
["Qualité de l'accueil."]
["TOTAL 1",{"$f":"SUM(B19:B33)","v":0},30,{"$f":"B34/C34","v":0}]
["CRITERES ORGANISATIONNELS",null,"REMARQUES (justifier impérativement votre cotation)"]
["Affiche (présence et respect de l'article 10 du règlement)."]
["Plan et fléchage (pour rejoindre les jeux, plan des jeux et du site. "]
["Terrains réglementaires (longueur, largeur, planches)."]
["Carré d'honneur (8 jeux 15x4, affichage des scores, éclairage, barrières)."]
["Eclairage du site (jeux éclairés en quantités suffisantes). "]
["Sonorisation ( de l'ensemble des jeux et du carré d'honneur)."]
["Contrôle des boules (appareil de contrôle à disposition)."]
["Contrôle fait, noté le résultats (fait 2, non fait 0)."]
["Sanitaires (en nombre suffisant pour femmes, hommes et PMR)."]
["Entretien et propreté ( du site, des sanitaires etc. ..). "]
["Tri sélectif."]
["Protocole (présentation des joueurs, arbitres, officiels)."]
["Animation du site (Concours annexes jeunes féminines etc. …)."]
["Restauration sur place (Salle, tente ou chapiteau)."]
["Bénévoles en nombre suffisant. "]
["Gestion des incidents et des incivilités "]
["Local pour contrôles médicaux (alcoolémie et dopage)."]
["Mise en place d'un Comité d'Honneur. "]
["Présence d'un Animateur."]
["Tableau ou écran obligatoire."]
["Espace pour la presse."]
["Présence de tribune."]
["Affichage score sur carré d'honneur"]
["Impression des feuille de match obligatoire. "]
["TOTAL 2",{"$f":"SUM(B36:B59)","v":0},48,{"$f":"B60/C60","v":0}]
["CRITERES PROMOTIONNELS",null,"REMARQUES (justifier impérativement votre cotation)"]
["Présence des Elus"]
["Présence des Sponsors"]
["Communication avec la presse "]
["Gentlemen - Exhibition"]
["Niveau du plateau "]
["Promotion RADIO- TV "]
["TOTAL 2",{"$f":"SUM(B62:B67)","v":0},12,{"$f":"B68/C68","v":0}]
["CRITERES SECURITAIRE ",null,"REMARQUES (justifier impérativement votre cotation)                                       Critères  obligatoires sur Inter-Supra et Even."]
["Service de sécurité.  "]
["Service d'urgence (Pompier, Croix Rouge etc. …). "]
["Présence d'un Défibrillateur.                                  "]
["Accessibilité pour les personnes à mobilité réduite. "]
["TOTAL 2",{"$f":"SUM(B70:B73)","v":0},8,{"$f":"B74/C74","v":0}]
["TOTAL 1 - 2 - 3 - 4",{"$f":"C68+C60+C34+C74","v":98},null,"% Global","% Crit. Régl.","% Crit. Org. ","% Crit. Prom.","Crit. SEC."]
["Total de point Maxi ",{"$f":"B68+B60+B34+B74","v":0},null,{"$f":"B76/B75","v":0},{"$f":"D34","v":0},{"$f":"D60","v":0},{"$f":"D68","v":0},{"$f":"D74","v":0}]
["Horaire journée 1","Matin",null,null,"Midi",null,"Soir"]
["Horaire journée 2","Matin",null,null,"Midi",null,"Soir"]
["REMARQUES"]
["SYNTHESE"]
["*Mettre  2 dans cellule B si la manifestation n'est pas concerné par cette règle. "]
["1/ Un exemplaire de ce compte-rendu DUMENT REMPLI est à transmettre PAR LE DELEGUE dans les 48 heures au siège social de la F.F.P.J.P.    PAR MAIL   ffpjp.siege@petanque.fr      "]
[]
["2 / une copie au COMITE concerné."]
["3 / une copie au COMITE REGIONAL concerné."]
["4 / une copie au Président de l'organisation. "]
[null,null,null,null,null,null,{"$f":"'Evaluation NATIONAL'!G77:I77","v":"Mise à jour le 06 février 2018"}]

{"sheet":"Evaluation JEUNE","index":3,"n_rows":78,"n_cols":9,"rows_kept":78,"cut":false,"hidden":false,"merged":[[66,1,66,2],[67,1,67,2],[26,2,26,8],[62,2,62,8],[53,2,53,8],[52,2,52,8],[59,2,59,8],[54,2,54,8],[64,1,64,2],[58,2,58,8],[63,4,63,8],[27,2,27,8],[28,2,28,8],[29,2,29,8],[30,2,30,8],[51,0,51,1],[51,2,51,8],[49,2,49,8],[45,2,45,8],[46,2,46,8],[47,2,47,8],[50,4,50,8],[74,0,74,8],[75,0,75,8],[76,0,76,8],[8,0,8,1],[8,5,8,8],[68,1,68,8],[69,1,69,8],[60,2,60,8],[61,2,61,8],[65,1,65,2],[71,0,72,8],[73,0,73,8],[55,2,55,8],[56,2,56,8],[57,4,57,8],[58,0,58,1],[38,2,38,8],[48,2,48,8],[39,2,39,8],[40,2,40,8],[41,2,41,8],[42,2,42,8],[43,2,43,8],[44,2,44,8],[33,2,33,8],[34,2,34,8],[35,2,35,8],[36,2,36,8],[37,2,37,8],[19,0,19,1],[19,2,19,8],[25,2,25,8],[32,0,32,1],[32,2,32,8],[20,2,20,8],[21,2,21,8],[22,2,22,8],[23,2,23,8],[24,2,24,8],[14,0,14,8],[15,0,15,8],[16,0,16,8],[17,0,17,8],[18,1,18,3],[18,4,18,5],[18,6,18,7],[9,8,10,8],[10,1,10,2],[11,1,11,2],[12,1,12,2],[13,1,13,2],[0,0,2,0],[0,1,0,8],[1,1,1,8],[2,1,2,8],[3,0,3,8],[78,4,78,7],[4,1,4,2],[4,3,4,4],[4,7,4,8],[5,7,5,8],[6,1,6,4],[6,5,6,6],[6,7,6,8],[7,1,7,4],[7,5,7,6],[7,7,7,8],[5,1,5,5],[9,0,9,4],[9,5,10,5],[9,6,10,6],[9,7,10,7]]}
[null,"FEDERATION FRANCAISE DE PETANQUE  ET JEU PROVENCAL"]
[null,"Agréée  par le Ministère des Sports"]
[null,"Siège social : 13, rue Trigance – 13002  MARSEILLE"]
["VERSION V06022018     RAPPORT D' EVALUATION QUALITATIVE JEUNE "]
["NATIONAL N°",null,null,"INTER N°",null,null,"DATE:"]
[" INTITULE DU CONCOURS : ",null,null,null,null,null,"LIEU :"]
["DELEGUE :",null,null,null,null,"C. D. et C.R. et fonction"]
["ORGANISATEUR :",null,null,null,null,"C. D. et C.R. et fonction"]
["Le délégué doit impérativement noter :",null,"Tél. ",null,"E mail :"]
["1) EVALUATION QUANTITATIVE",null,null,null,null,"% Présent / inscrit","% Présents / limité","Minimum Fédération","% Présent /min. FFPJP "]
["NOMBRE EQUIPES","Limitée",null,"Inscrite","Présente"]
["JUNIORS",null,null,null,null,{"$f":"E12/D12","v":{"$error":"#DIV/0!"}},{"$f":"D12/B12","v":{"$error":"#DIV/0!"}},null,{"$f":"E12/H12","v":{"$error":"#DIV/0!"}}]
["CADETS",null,null,null,null,{"$f":"E13/D13","v":{"$error":"#DIV/0!"}},{"$f":"D13/B13","v":{"$error":"#DIV/0!"}},null,{"$f":"E13/H13","v":{"$error":"#DIV/0!"}}]
["MINIMES",null,null,null,null,{"$f":"E14/D14","v":{"$error":"#DIV/0!"}},{"$f":"D14/B14","v":{"$error":"#DIV/0!"}},null,{"$f":"E14/H14","v":{"$error":"#DIV/0!"}}]
["EQUIPES ETRANGERES (International noté ci-dessous après vérifications de leurs validations les pays étrangers)   "]
[]
["Présence obligatoire de 6 équipes étrangères dont 3 nationalités différentes, licenciées à une Fédération étrangère ou sélectionnées par leur pays."]
["2 ) EVALUATION QUALITATIVE  (Dans le respect des règles de la F. F. P. J. P.)"]
["INSUFFISANT = 0","ACCEPTABLE = 1",null,null,"CORRECT = 2"]
["CRITERES REGLEMENTAIRES",null,"REMARQUES (justifier impérativement votre cotation)"]
["Utilisation du logiciel Gestion Concours"]
["Feuilles de Match "]
["Réception des licences : entrées équipes dans Gestion Concours"]
["Tenue de la Table de marque "]
["Ecran (informatique) ou tableau de suivie manuel"]
["Respect de la dotation annoncée"]
["Respect des horaires (noté les  heures de début et de fin sur les lignes 67 & 68"]
["Affichage du Jury"]
["Arbitres en nombre suffisant (règlement = 1 pour 32 terrains)"]
["Respect du règlement buvette (législation en vigueur)"]
["Qualité de l'accueil."]
["TOTAL 1",{"$f":"SUM(B21:B31)","v":0},22,{"$f":"B32/C32","v":0}]
["CRITERES ORGANISATIONNELS",null,"REMARQUES (justifier impérativement votre cotation)"]
["Affiche (présence et respect de l'article 10 du règlement)"]
["Plan et fléchage (pour rejoindre les jeux, plan des jeux et du site "]
["Terrains réglementaires (longueur, largeur, planches)"]
["Carré d'honneur (8 jeux 15x4, affichage des scores, éclairage, barrières)"]
["Eclairage du site (jeux éclairés en quantités suffisantes, ) "]
["Sonorisation ( de l'ensemble des jeux et du carré d'honneur)"]
["Contrôle des boules (appareil de contrôle à disposition)"]
["Contrôle fait, noté le résultats (fait 2, non fait 0)"]
["Sanitaires (en nombre suffisant pour femmes, hommes et PMR)"]
["Entretien et propreté ( du site, des sanitaires etc. ..) "]
["Tri sélectif "]
["Protocole (présentation des joueurs, arbitres, officiels)"]
["Animation du site (Concours annexes jeunes féminines etc. …)"]
["Restauration sur place (Salle, tente ou chapiteau)"]
["Bénévoles en nombre suffisant. "]
["Gestion des incidents et des incivilités "]
["Local pour contrôles médicaux (alcoolémie et dopage) "]
["TOTAL 2",{"$f":"SUM(B34:B50)","v":0},34,{"$f":"B51/C51","v":0}]
["CRITERES PROMOTIONNELS",null,"REMARQUES (justifier impérativement votre cotation)"]
["Présence des Elus"]
["Présence des sponsors"]
["Communication avec la presse "]
["Promotion RADIO- TV "]
["Présence d'équipes de France (envoyée par DTN)"]
["TOTAL 2",{"$f":"SUM(B53:B57)","v":0},10,{"$f":"B58/C58","v":0}]
["CRITERES SECURITAIRE ",null,"REMARQUES (justifier impérativement votre cotation)"]
["Service de sécurité  "]
["Service d'urgence (Pompier, Croix Rouge etc. …) "]
["Présence d'un Défibrillateur                                     "]
["Accessibilité pour les personnes à mobilité réduite "]
["TOTAL 2",{"$f":"SUM(B60:B63)","v":0},8,{"$f":"B64/C64","v":0}]
["TOTAL 1 - 2 - 3 - 4",{"$f":"C32+C51+C58+C64","v":74},null,"% Global","% Crit. Régl.","% Crit. Org. ","% Crit. Prom.","Crit. SEC."]
["Total de point Maxi ",{"$f":"B32+B51+B58+B64","v":0},null,{"$f":"B66/B65","v":0},{"$f":"D32","v":0},{"$f":"D51","v":0},{"$f":"D58","v":0},{"$f":"D64","v":0}]
["Horaire Journée 1","Matin",null,null,"Midi",null,"Soir"]
["Horaire Journée 2","Matin",null,null,"Midi",null,"Soir"]
["REMARQUES"]
["SYNTHESE"]
[{"$f":"'Evaluation NATIONAL'!A71:I71","v":"*Mettre  2 dans cellule B si la manifestation n'est pas concerné par cette règle. "}]
["1/ Un exemplaire de ce compte-rendu DUMENT REMPLI est à transmettre PAR LE DELEGUE dans les 48 heures au siège social de la F.F.P.J.P.    PAR MAIL   ffpjp.siege@petanque.fr      "]
[]
["2 / une copie au Président du C.R. concerné"]
["3 / une copie au Responsable du C.R. concerné."]
["4 / une copie au Président du Comité concerné. "]
["5 / une copie au Président de l'organisation. "]
[null,null,null,null,null,null,{"$f":"'Evaluation NATIONAL'!G77:I77","v":"Mise à jour le 06 février 2018"}]